Workbook

Sheet Sheet1
A1: 序号 | B1: 资产编号 | C1: 原值 | D1: 净值 | E1: 残值 | F1: 设备编号 | G1: 库存号 | H1: 固定资产（是/否） | I1: 使用年限 | J1: 已使用年限 | K1: 资产名称 | L1: 生产线-使用岗位-摆放位置 | M1: 备注
A2: 1 | B2: 1101060 | C2: 9800 | D2: =VLOOKUP($B2,[1]Sheet1!$A:$Q,16,FALSE) -> 490 | E2: =VLOOKUP($B2,[1]Sheet1!$A:$Q,17,FALSE) -> 490 | F2: 10025090 | G2: ZJ-02-047 | H2: 是 | I2: =VLOOKUP(G2,[2]总台账!$E:$Q,13,0) -> 2009-10-27 | J2: 16 | K2: 不锈钢316L配液罐 | L2: 报废库
A3: 2 | B3: 1101059 | C3: 9800 | D3: =VLOOKUP(B3,[1]Sheet1!$A:$Q,16,FALSE) -> 490 | E3: =VLOOKUP($B3,[1]Sheet1!$A:$Q,17,FALSE) -> 490 | F3: 10025091 | G3: ZJ-02-048 | H3: 是 | I3: =VLOOKUP(G3,[2]总台账!$E:$Q,13,0) -> 2009-10-27 | J3: 15 | K3: 不锈钢316L配液罐 | L3: 报废库
A4: 3 | B4: 1100229 | C4: 496948.85 | D4: =VLOOKUP(B4,[1]Sheet1!$A:$Q,16,FALSE) -> 24847 | E4: =VLOOKUP($B4,[1]Sheet1!$A:$Q,17,FALSE) -> 24847 | F4: 10024677 | G4: ZJ-02-201 | H4: 是 | I4: =VLOOKUP(G4,[2]总台账!$E:$Q,13,0) -> 2010-06-29 | J4: 15 | K4: 软膏自动包装机 | L4: 报废库
A5: 4 | B5: 1100237 | C5: 1458 | D5: =VLOOKUP(B5,[1]Sheet1!$A:$Q,16,FALSE) -> 72.9 | E5: =VLOOKUP($B5,[1]Sheet1!$A:$Q,17,FALSE) -> 72.9 | F5: 10024687 | G5: ZJ-02-211 | H5: 是 | I5: =VLOOKUP(G5,[2]总台账!$E:$Q,13,0) -> 2010-07-05 | J5: 15 | K5: 美的洗衣机 | L5: 报废库
A6: 5 | B6: 1100899 | C6: 40659.44 | D6: =VLOOKUP(B6,[1]Sheet1!$A:$Q,16,FALSE) -> 2032 | E6: =VLOOKUP($B6,[1]Sheet1!$A:$Q,17,FALSE) -> 2032 | F6: 10024780 | G6: ZJ-01-005 | H6: 是 | I6: =VLOOKUP(G6,[2]总台账!$E:$Q,13,0) -> 2011-03-31 | J6: 14 | K6: 凝结水回收器 | L6: 报废库
A7: 6 | B7: 1100147 | C7: 2991.45 | D7: =VLOOKUP(B7,[1]Sheet1!$A:$Q,16,FALSE) -> 149.5 | E7: =VLOOKUP($B7,[1]Sheet1!$A:$Q,17,FALSE) -> 149.5 | F7: 10024656 | G7: ZJ-01-025 | H7: 是 | I7: =VLOOKUP(G7,[2]总台账!$E:$Q,13,0) -> 2010-04-26 | J7: 15 | K7: 臭氧发生器 | L7: 报废库
A8: 7 | B8: 1100629 | C8: 4957.27 | D8: =VLOOKUP(B8,[1]Sheet1!$A:$Q,16,FALSE) -> 247.8 | E8: =VLOOKUP($B8,[1]Sheet1!$A:$Q,17,FALSE) -> 247.8 | F8: 10025062 | G8: ZJ-01-809 | H8: 是 | I8: =VLOOKUP(G8,[2]总台账!$E:$Q,13,0) -> 2004-08-10 | J8: 20 | K8: 储气罐 | L8: 报废库
A9: 8 | B9: 1100358 | C9: 6410.26 | D9: =VLOOKUP(B9,[1]Sheet1!$A:$Q,16,FALSE) -> 320.5 | E9: =VLOOKUP($B9,[1]Sheet1!$A:$Q,17,FALSE) -> 320.5 | F9: 10025458 | G9: YY-08-02-001(G) | H9: 是 | I9: =VLOOKUP(G9,[2]总台账!$E:$Q,13,0) -> 2014-10-29 | J9: 10 | K9: 全自动洗衣机 | L9: 2楼闲置库
A10: 9 | F10: 10026767 | G10: YL-02-006 | H10: 否 | J10: 10 | K10: 海尔低温冷冻柜 | L10: 2楼闲置库
A11: 10 | B11: 1100697 | C11: 431600 | D11: =VLOOKUP(B11,[1]Sheet1!$A:$Q,16,FALSE) -> 21580 | E11: =VLOOKUP($B11,[1]Sheet1!$A:$Q,17,FALSE) -> 21580 | F11: 10024518 | G11: YL-02-063 | H11: 是 | I11: =VLOOKUP(G11,[2]总台账!$E:$Q,13,0) -> 2004-12-10 | J11: 20 | K11: 制备液相 | L11: 2楼报废库
A12: 11 | B12: 1100772 | C12: 90560.34 | D12: =VLOOKUP(B12,[1]Sheet1!$A:$Q,16,FALSE) -> 4528 | E12: =VLOOKUP($B12,[1]Sheet1!$A:$Q,17,FALSE) -> 4528 | F12: 10024771 | G12: YL-02-070 | H12: 是 | I12: =VLOOKUP(G12,[2]总台账!$E:$Q,13,0) -> 2011-03-31 | J12: 16 | K12: 脉动真空灭菌器 | L12: 报废库
A13: 12 | B13: 1100054 | C13: 111111.12 | D13: =VLOOKUP(B13,[1]Sheet1!$A:$Q,16,FALSE) -> 5555 | E13: =VLOOKUP($B13,[1]Sheet1!$A:$Q,17,FALSE) -> 5555 | F13: 10024702 | G13: YL-02-071 | H13: 是 | I13: =VLOOKUP(G13,[2]总台账!$E:$Q,13,0) -> 2010-09-19 | J13: 14 | K13: 净化热风循环烘箱 | L13: 报废库
A14: 13 | B14: 1100211 | C14: 69733.33 | D14: =VLOOKUP(B14,[1]Sheet1!$A:$Q,16,FALSE) -> 3486 | E14: =VLOOKUP($B14,[1]Sheet1!$A:$Q,17,FALSE) -> 3486 | F14: 10025172 | G14: ZD-01-001 | H14: 是 | I14: =VLOOKUP(G14,[2]总台账!$E:$Q,13,0) -> 2010-06-29 | J14: 14 | K14: 净化组合空调机组 | L14: 报废库
A15: 14 | B15: 1100961 | C15: 5726.5 | D15: =VLOOKUP(B15,[1]Sheet1!$A:$Q,16,FALSE) -> 286.3 | E15: =VLOOKUP($B15,[1]Sheet1!$A:$Q,17,FALSE) -> 286.3 | F15: 10024572 | G15: DL-01-808 | H15: 是 | I15: =VLOOKUP(G15,[2]总台账!$E:$Q,13,0) -> 2008-11-27 | J15: 16 | K15: COD速测仪 | L15: 2楼报废库
A16: 15 | B16: 1100105 | C16: 30341.88 | D16: =VLOOKUP(B16,[1]Sheet1!$A:$Q,16,FALSE) -> 1517 | E16: =VLOOKUP($B16,[1]Sheet1!$A:$Q,17,FALSE) -> 1517 | F16: 10025246 | G16: DL-03-01-002(G) | H16: 是 | I16: =VLOOKUP(G16,[2]总台账!$E:$Q,13,0) -> 2014-07-11 | J16: 10 | K16: 环保数据采集仪 | L16: 2楼闲置库
A17: 16 | F17: 10026856 | G17: YY-02-010 | H17: 否 | K17: 洗衣机 | L17: 报废库
A18: 17 | B18: 1101140 | C18: 10940.17 | D18: =VLOOKUP(B18,[1]Sheet1!$A:$Q,16,FALSE) -> 547 | E18: =VLOOKUP($B18,[1]Sheet1!$A:$Q,17,FALSE) -> 547 | F18: 10024947 | G18: ZH-01-289 | H18: 是 | I18: =VLOOKUP(G18,[2]总台账!$E:$Q,13,0) -> 2012-06-20 | J18: 12 | K18: 火焰光度计 | L18: 报废库
A19: 18 | B19: 1101382 | C19: 425 | D19: =VLOOKUP(B19,[1]Sheet1!$A:$Q,16,FALSE) -> 425 | E19: =VLOOKUP($B19,[1]Sheet1!$A:$Q,17,FALSE) -> 0 | F19: 10040026 | G19: KY-02-02-026(G) | H19: 是 | I19: =VLOOKUP(G19,[2]总台账!$E:$Q,13,0) -> 2022-01-28 | J19: 研究院转来的设备已过使用年限，此时间是生物购买后计时日期。 | K19: 全温震荡仪 | L19: 报废库
A20: 19 | B20: 1101386 | C20: 1400 | D20: =VLOOKUP(B20,[1]Sheet1!$A:$Q,16,FALSE) -> 1400 | E20: =VLOOKUP($B20,[1]Sheet1!$A:$Q,17,FALSE) -> 0 | F20: 10040030 | G20: KY-08-02-011(G) | H20: 是 | I20: =VLOOKUP(G20,[2]总台账!$E:$Q,13,0) -> 2022-01-28 | J20: 研究院转来的设备已过使用年限，此时间是生物购买后计时日期。 | K20: 层析冷柜 | L20: 2楼报废库
A21: 20 | B21: 1100857 | C21: 3555.56 | D21: =VLOOKUP(B21,[1]Sheet1!$A:$Q,16,FALSE) -> 177.7 | E21: =VLOOKUP($B21,[1]Sheet1!$A:$Q,17,FALSE) -> 177.7 | F21: 10025044 | G21: ZH-01-228 | H21: 是 | I21: =VLOOKUP(G21,[2]总台账!$E:$Q,13,0) -> 2011-09-26 | J21: 13 | K21: 春兰空调 | L21: 2楼报废库
A22: 21 | B22: 1100830 | C22: 39316.24 | D22: =VLOOKUP(B22,[1]Sheet1!$A:$Q,16,FALSE) -> 1965 | E22: =VLOOKUP($B22,[1]Sheet1!$A:$Q,17,FALSE) -> 1965 | F22: 10024813 | G22: ZK-01-001 | H22: 是 | I22: =VLOOKUP(G22,[2]总台账!$E:$Q,13,0) -> 2011-08-30 | J22: 13 | K22: 药品稳定试验箱 | L22: 报废库
A23: 22 | B23: 1100422 | C23: 63675.21 | D23: =VLOOKUP(B23,[1]Sheet1!$A:$Q,16,FALSE) -> 3183 | E23: =VLOOKUP($B23,[1]Sheet1!$A:$Q,17,FALSE) -> 3183 | F23: 10025578 | G23: ZK-02-01-001(G) | H23: 是 | I23: =VLOOKUP(G23,[2]总台账!$E:$Q,13,0) -> 2014-10-29 | J23: 11 | K23: 稳定性试验箱 | L23: 报废库
A24: 23 | B24: 1100421 | C24: 63675.21 | D24: =VLOOKUP(B24,[1]Sheet1!$A:$Q,16,FALSE) -> 3183 | E24: =VLOOKUP($B24,[1]Sheet1!$A:$Q,17,FALSE) -> 3183 | F24: 10025579 | G24: ZK-02-01-002(G) | H24: 是 | I24: =VLOOKUP(G24,[2]总台账!$E:$Q,13,0) -> 2014-10-29 | J24: 11 | K24: 稳定性试验箱 | L24: 报废库
A25: 24 | B25: 1101000 | C25: 2051.28 | D25: =VLOOKUP(B25,[1]Sheet1!$A:$Q,16,FALSE) -> 102.5 | E25: =VLOOKUP($B25,[1]Sheet1!$A:$Q,17,FALSE) -> 102.5 | G25: ST-01-026 | H25: 是 | I25: =VLOOKUP(G25,[2]总台账!$E:$Q,13,0) -> 2009-12-01 | J25: 15 | K25: 绞切两用机 | L25: 报废库
A26: 25 | B26: 1101006 | C26: 1581.2 | D26: =VLOOKUP(B26,[1]Sheet1!$A:$Q,16,FALSE) -> 79.06 | E26: =VLOOKUP($B26,[1]Sheet1!$A:$Q,17,FALSE) -> 79.06 | G26: ST-01-014 | H26: 是 | I26: =VLOOKUP(G26,[2]总台账!$E:$Q,13,0) -> 2009-12-01 | J26: 15 | K26: 面条机 | L26: 报废库
A27: 26 | B27: 1100881 | C27: 8803.42 | D27: =VLOOKUP(B27,[1]Sheet1!$A:$Q,16,FALSE) -> 440.1 | E27: =VLOOKUP($B27,[1]Sheet1!$A:$Q,17,FALSE) -> 440.1 | G27: ST-01-030 | H27: 是 | I27: =VLOOKUP(G27,[2]总台账!$E:$Q,13,0) -> 2011-05-31 | J27: 13 | K27: 饺子自动成型机 | L27: 报废库
A28: 27 | B28: 1100989 | C28: 160683.8 | D28: =VLOOKUP(B28,[1]Sheet1!$A:$Q,16,FALSE) -> 8034 | E28: =VLOOKUP($B28,[1]Sheet1!$A:$Q,17,FALSE) -> 8034 | F28: 10024581 | G28: ZJ-03-091 | H28: 是 | I28: =VLOOKUP(G28,[2]总台账!$E:$Q,13,0) -> 2008-12-25 | J28: 16 | K28: 喷码机 | L28: 2楼闲置库
A29: 28 | B29: 1100974 | C29: 15213.68 | D29: =VLOOKUP(B29,[1]Sheet1!$A:$Q,16,FALSE) -> 760.6 | E29: =VLOOKUP($B29,[1]Sheet1!$A:$Q,17,FALSE) -> 760.6 | F29: 10024595 | G29: GY-01-020 | H29: 是 | I29: =VLOOKUP(G29,[2]总台账!$E:$Q,13,0) -> 2009-02-24 | J29: 16 | K29: 低温存储柜 | L29: 2楼闲置库
A30: 29 | B30: 1100924 | C30: 110256.42 | D30: 5512 | E30: 5512 | F30: 10024605 | G30: ZJ-02-203 | H30: 是 | I30: =VLOOKUP(G30,[2]总台账!$E:$Q,13,0) -> 2009-04-27 | J30: 16 | K30: 透明膜包装机 | L30: 报废库
A31: 30 | B31: 1101038 | C31: 149572.58 | D31: =VLOOKUP(B31,[1]Sheet1!$A:$Q,16,FALSE) -> 7478 | E31: =VLOOKUP($B31,[1]Sheet1!$A:$Q,17,FALSE) -> 7478 | F31: 10024640 | G31: ZJ-03-056 | H31: 是 | I31: =VLOOKUP(G31,[2]总台账!$E:$Q,13,0) -> 2010-01-31 | J31: 15 | K31: 激光喷码机 | L31: 2楼闲置库
A32: 31 | B32: 1100146 | C32: 2143.59 | D32: =VLOOKUP(B32,[1]Sheet1!$A:$Q,16,FALSE) -> 107.1 | E32: =VLOOKUP($B32,[1]Sheet1!$A:$Q,17,FALSE) -> 107.1 | F32: 10024657 | G32: XZ-01-900 | H32: 是 | I32: =VLOOKUP(G32,[2]总台账!$E:$Q,13,0) -> 2010-04-27 | J32: 15 | K32: 立式多级泵 | L32: 报废库
A33: 32 | B33: 1100807 | C33: 106837.6 | D33: =VLOOKUP(B33,[1]Sheet1!$A:$Q,16,FALSE) -> 5341 | E33: =VLOOKUP($B33,[1]Sheet1!$A:$Q,17,FALSE) -> 5341 | F33: 10024899 | G33: ZJ-03-052 | H33: 是 | I33: =VLOOKUP(G33,[2]总台账!$E:$Q,13,0) -> 2011-06-24 | J33: 14 | K33: 激光喷码机 | L33: 2楼闲置库
A34: 33 | B34: 1101057 | C34: 15213.68 | D34: =VLOOKUP(B34,[1]Sheet1!$A:$Q,16,FALSE) -> 760.6 | E34: =VLOOKUP($B34,[1]Sheet1!$A:$Q,17,FALSE) -> 760.6 | F34: 10025092 | G34: GY-01-049 | H34: 是 | I34: =VLOOKUP(G34,[2]总台账!$E:$Q,13,0) -> 2009-10-27 | J34: 16 | K34: 药品冰箱 | L34: 2楼闲置库
A35: 34 | B35: 1101056 | C35: 15213.68 | D35: =VLOOKUP(B35,[1]Sheet1!$A:$Q,16,FALSE) -> 760.6 | E35: =VLOOKUP($B35,[1]Sheet1!$A:$Q,17,FALSE) -> 760.6 | F35: 10025093 | G35: GY-01-050 | H35: 是 | I35: =VLOOKUP(G35,[2]总台账!$E:$Q,13,0) -> 2009-10-27 | J35: 16 | K35: 药品冰箱 | L35: 2楼闲置库
A36: 35 | B36: 1101051 | C36: 17800 | D36: =VLOOKUP(B36,[1]Sheet1!$A:$Q,16,FALSE) -> 890 | E36: =VLOOKUP($B36,[1]Sheet1!$A:$Q,17,FALSE) -> 890 | F36: 10025094 | G36: GY-01-017 | H36: 是 | I36: =VLOOKUP(G36,[2]总台账!$E:$Q,13,0) -> 2009-11-27 | J36: 16 | K36: 低温冰箱 | L36: 2楼闲置库
A37: 36 | B37: 1101050 | C37: 17800 | D37: =VLOOKUP(B37,[1]Sheet1!$A:$Q,16,FALSE) -> 890 | E37: =VLOOKUP($B37,[1]Sheet1!$A:$Q,17,FALSE) -> 890 | F37: 10025095 | G37: GY-01-018 | H37: 是 | I37: =VLOOKUP(G37,[2]总台账!$E:$Q,13,0) -> 2009-11-27 | J37: 16 | K37: 低温冰箱 | L37: 2楼闲置库
A38: 37 | B38: 1100185 | C38: 5811.97 | D38: =VLOOKUP(B38,[1]Sheet1!$A:$Q,16,FALSE) -> 290.6 | E38: =VLOOKUP($B38,[1]Sheet1!$A:$Q,17,FALSE) -> 290.6 | F38: 10025126 | G38: ZJ-01-803 | H38: 是 | I38: =VLOOKUP(G38,[2]总台账!$E:$Q,13,0) -> 2010-04-27 | J38: 15 | K38: 立式多级泵 | L38: 报废库
A39: 38 | B39: 1100184 | C39: 5811.97 | D39: =VLOOKUP(B39,[1]Sheet1!$A:$Q,16,FALSE) -> 290.6 | E39: =VLOOKUP($B39,[1]Sheet1!$A:$Q,17,FALSE) -> 290.6 | F39: 10025127 | G39: ZJ-01-804 | H39: 是 | I39: =VLOOKUP(G39,[2]总台账!$E:$Q,13,0) -> 2010-04-27 | J39: 15 | K39: 立式多级泵 | L39: 报废库
A40: 39 | B40: 1100183 | C40: 5555.56 | D40: =VLOOKUP(B40,[1]Sheet1!$A:$Q,16,FALSE) -> 277.7 | E40: =VLOOKUP($B40,[1]Sheet1!$A:$Q,17,FALSE) -> 277.7 | F40: 10025128 | G40: ZJ-01-805 | H40: 是 | I40: =VLOOKUP(G40,[2]总台账!$E:$Q,13,0) -> 2010-04-27 | J40: 15 | K40: 立式多级泵 | L40: 报废库
A41: 40 | B41: 1100121 | C41: 149572.58 | D41: =VLOOKUP(B41,[1]Sheet1!$A:$Q,16,FALSE) -> 7478 | E41: =VLOOKUP($B41,[1]Sheet1!$A:$Q,17,FALSE) -> 7478 | F41: 10025140 | G41: ZJ-01-081 | H41: 是 | I41: =VLOOKUP(G41,[2]总台账!$E:$Q,13,0) -> 2010-05-26 | J41: 14 | K41: 激光喷码机 | L41: 2楼闲置库
A42: 41 | B42: 1100120 | C42: 149572.58 | D42: =VLOOKUP(B42,[1]Sheet1!$A:$Q,16,FALSE) -> 7478 | E42: =VLOOKUP($B42,[1]Sheet1!$A:$Q,17,FALSE) -> 7478 | F42: 10025141 | G42: ZJ-03-055 | H42: 是 | I42: =VLOOKUP(G42,[2]总台账!$E:$Q,13,0) -> 2010-05-26 | J42: 14 | K42: 激光喷码机 | L42: 2楼闲置库
A43: 42 | B43: 1100134 | C43: 35897.43 | D43: =VLOOKUP(B43,[1]Sheet1!$A:$Q,16,FALSE) -> 1794 | E43: =VLOOKUP($B43,[1]Sheet1!$A:$Q,17,FALSE) -> 1794 | F43: 10025153 | G43: ZJ-02-087 | H43: 是 | I43: =VLOOKUP(G43,[2]总台账!$E:$Q,13,0) -> 2010-06-29 | J43: 14 | K43: 喷码机 | L43: 2楼闲置库
A44: 43 | B44: 1100132 | C44: 35897.43 | D44: =VLOOKUP(B44,[1]Sheet1!$A:$Q,16,FALSE) -> 1794 | E44: =VLOOKUP($B44,[1]Sheet1!$A:$Q,17,FALSE) -> 1794 | F44: 10025155 | G44: ZJ-02-085 | H44: 是 | I44: =VLOOKUP(G44,[2]总台账!$E:$Q,13,0) -> 2010-06-29 | J44: 14 | K44: 喷码机 | L44: 2楼闲置库
A45: 44 | F45: 10026756 | G45: GY-01-005 | H45: 否 | J45: 10 | K45: 低温冰柜 | L45: 2楼闲置库
A46: 45 | F46: 10026956 | G46: ZJ-01-040 | H46: 否 | J46: 10 | K46: 激光喷码机 | L46: 2楼闲置库
A47: 46 | F47: 10026995 | G47: ZJ-03-054 | H47: 否 | J47: 10 | K47: 喷码机 | L47: 2楼闲置库
A48: 47 | B48: 1100792 | C48: 180708.66 | D48: =VLOOKUP(B48,[1]Sheet1!$A:$Q,16,FALSE) -> 9035 | E48: =VLOOKUP($B48,[1]Sheet1!$A:$Q,17,FALSE) -> 9035 | F48: 10024754 | G48: ZJ-03-064 | H48: 是 | I48: =VLOOKUP(G48,[2]总台账!$E:$Q,13,0) -> 2011-03-31 | J48: 14 | K48: 配剂系统 | L48: 3楼肿瘤
A49: 48 | B49: 1100783 | C49: 243956.69 | D49: =VLOOKUP(B49,[1]Sheet1!$A:$Q,16,FALSE) -> 12197 | E49: =VLOOKUP($B49,[1]Sheet1!$A:$Q,17,FALSE) -> 12197 | F49: 10024762 | G49: ZJ-03-012 | H49: 是 | I49: =VLOOKUP(G49,[2]总台账!$E:$Q,13,0) -> 2011-03-31 | J49: 14 | K49: 抗生素瓶立式超声波清洗机 | L49: 3楼肿瘤
A50: 49 | B50: 1100782 | C50: 505984.26 | D50: =VLOOKUP(B50,[1]Sheet1!$A:$Q,16,FALSE) -> 25299 | E50: =VLOOKUP($B50,[1]Sheet1!$A:$Q,17,FALSE) -> 25299 | F50: 10024763 | G50: ZJ-03-013 | H50: 是 | I50: =VLOOKUP(G50,[2]总台账!$E:$Q,13,0) -> 2011-03-31 | J50: 14 | K50: 隧道式灭菌干燥机 | L50: 3楼肿瘤
A51: 50 | B51: 1100781 | C51: 420147.64 | D51: =VLOOKUP(B51,[1]Sheet1!$A:$Q,16,FALSE) -> 21007 | E51: =VLOOKUP($B51,[1]Sheet1!$A:$Q,17,FALSE) -> 21007 | F51: 10024764 | G51: ZJ-03-018 | H51: 是 | I51: =VLOOKUP(G51,[2]总台账!$E:$Q,13,0) -> 2011-03-31 | J51: 14 | K51: 抗生素瓶灌装加塞机 | L51: 3楼肿瘤
A52: 51 | B52: 1100780 | C52: 135531.5 | D52: =VLOOKUP(B52,[1]Sheet1!$A:$Q,16,FALSE) -> 6776 | E52: =VLOOKUP($B52,[1]Sheet1!$A:$Q,17,FALSE) -> 6776 | F52: 10024765 | G52: ZJ-03-019 | H52: 是 | I52: =VLOOKUP(G52,[2]总台账!$E:$Q,13,0) -> 2011-03-31 | J52: 14 | K52: 抗生素瓶轧盖机 | L52: 3楼肿瘤
A53: 52 | B53: 1100771 | C53: 343346.45 | D53: =VLOOKUP(B53,[1]Sheet1!$A:$Q,16,FALSE) -> 17167 | E53: =VLOOKUP($B53,[1]Sheet1!$A:$Q,17,FALSE) -> 17167 | F53: 10024772 | G53: ZJ-03-014 | H53: 是 | I53: =VLOOKUP(G53,[2]总台账!$E:$Q,13,0) -> 2011-03-31 | J53: 14 | K53: 胶塞清洗机 | L53: 3楼肿瘤
A54: 53 | B54: 1100768 | C54: 274074.8 | D54: =VLOOKUP(B54,[1]Sheet1!$A:$Q,16,FALSE) -> 13703 | E54: =VLOOKUP($B54,[1]Sheet1!$A:$Q,17,FALSE) -> 13703 | F54: 10024775 | G54: ZJ-03-015 | H54: 是 | I54: =VLOOKUP(G54,[2]总台账!$E:$Q,13,0) -> 2011-03-31 | J54: 14 | K54: 铝盖清洗机 | L54: 3楼肿瘤
A55: 54 | B55: 1100687 | C55: 66666.67 | D55: =VLOOKUP(B55,[1]Sheet1!$A:$Q,16,FALSE) -> 3333 | E55: =VLOOKUP($B55,[1]Sheet1!$A:$Q,17,FALSE) -> 3333 | F55: 10024841 | G55: ZJ-03-845 | H55: 是 | I55: =VLOOKUP(G55,[2]总台账!$E:$Q,13,0) -> 2011-12-28 | J55: 14 | K55: 隔离器 | L55: 3楼肿瘤
A56: 55 | B56: 1100693 | C56: 547008.54 | D56: =VLOOKUP(B56,[1]Sheet1!$A:$Q,16,FALSE) -> 27350 | E56: =VLOOKUP($B56,[1]Sheet1!$A:$Q,17,FALSE) -> 27350 | F56: 10024880 | G56: ZJ-01-102 | H56: 是 | I56: =VLOOKUP(G56,[2]总台账!$E:$Q,13,0) -> 2012-03-21 | J56: 13 | K56: 半自动进出料小车系统（orabs系统） | L56: 3楼肿瘤
A57: 56 | B57: 1100724 | C57: 72000 | D57: =VLOOKUP(B57,[1]Sheet1!$A:$Q,16,FALSE) -> 3600 | E57: =VLOOKUP($B57,[1]Sheet1!$A:$Q,17,FALSE) -> 3600 | F57: 10024901 | G57: ZJ-03-846 | H57: 是 | I57: =VLOOKUP(G57,[2]总台账!$E:$Q,13,0) -> 2013-03-19 | J57: 13 | K57: 不锈钢隔离器 | L57: 3楼肿瘤
A58: 57 | B58: 1101151 | C58: 7948.72 | D58: =VLOOKUP(B58,[1]Sheet1!$A:$Q,16,FALSE) -> 397.4 | E58: =VLOOKUP($B58,[1]Sheet1!$A:$Q,17,FALSE) -> 397.4 | F58: 10025074 | G58: ZJ-03-082 | H58: 是 | I58: =VLOOKUP(G58,[2]总台账!$E:$Q,13,0) -> 2007-10-31 | J58: 16 | K58: 移动百级层流车 | L58: 3楼肿瘤
A59: 58 | B59: 1101005 | C59: 837.61 | D59: =VLOOKUP(B59,[1]Sheet1!$A:$Q,16,FALSE) -> 41.88 | E59: =VLOOKUP($B59,[1]Sheet1!$A:$Q,17,FALSE) -> 41.88 | G59: ST-01-018 | H59: 是 | I59: =VLOOKUP(G59,[2]总台账!$E:$Q,13,0) -> 2009-12-01 | J59: 15 | K59: 面食发酵箱 | L59: 报废库
A60: 59 | B60: 1100328 | C60: 75213.68 | D60: 3760 | E60: 3760 | F60: 10025434 | G60: YY-01-198 | H60: 是 | I60: =VLOOKUP(G60,[2]总台账!$E:$Q,13,0) -> 2013-09-25 | J60: 11 | K60: 多路温度验证仪 | L60: 报废库
A61: 60 | B61: 1100675 | C61: 3500 | D61: 175 | E61: 175 | G61: ST-01-038 | H61: 是 | I61: =VLOOKUP(G61,[2]总台账!$E:$Q,13,0) -> 2011-12-28 | J61: 13 | K61: 和面机 | L61: 报废库
A62: 61 | B62: 1101506 | C62: 2.14 | D62: 2.14 | E62: 0 | F62: 10040150 | G62: KY-07-02-010(G) | H62: 是 | I62: =VLOOKUP(G62,[2]总台账!$E:$Q,13,0) -> 2022-01-28 | J62: 研究院转来的设备已过使用年限，此时间是生物购买后计时日期。 | K62: 电子天平3Kg | L62: 报废库
A63: 62 | B63: 1101154 | C63: 27350.43 | D63: 1367 | E63: 1367 | F63: 10024555 | G63: ZJ-02-072 | H63: 是 | I63: =VLOOKUP(G63,[2]总台账!$E:$Q,13,0) -> 2007-08-23 | J63: 17 | K63: 完整性测试仪 | L63: 报废库
A64: 63 | F64: 10038347 | G64: ZJ-02-069 | H64: 否 | I64: =VLOOKUP(G64,[2]总台账!$E:$Q,13,0) -> 2011-12-23 | J64: 13 | K64: 喷码机 | L64: 报废库
A65: 64 | F65: 10026776 | G65: YL-02-106 | H65: 否 | J65: 10 | K65: 大功率恒温磁力加热搅拌器 | L65: 报废库
A66: 65 | B66: 1100030 | C66: 3500 | D66: 175 | E66: 175 | F66: 10024892 | G66: YL-02-188 | H66: 是 | I66: =VLOOKUP(G66,[2]总台账!$E:$Q,13,0) -> 2001-12-26 | J66: 13 | K66: 晶体过滤器 | L66: 报废库
A67: 66 | B67: 1100029 | C67: 3500 | D67: 175 | E67: 175 | F67: 10024893 | G67: YL-02-189 | H67: 是 | I67: =VLOOKUP(G67,[2]总台账!$E:$Q,13,0) -> 2001-12-26 | J67: 13 | K67: 晶体过滤器 | L67: 报废库
A68: 67 | B68: 1100024 | C68: 3500 | D68: 175 | E68: 175 | F68: 10024894 | G68: YL-02-190 | H68: 是 | I68: =VLOOKUP(G68,[2]总台账!$E:$Q,13,0) -> 2001-12-26 | J68: 13 | K68: 晶体过滤器 | L68: 报废库
A69: 68 | B69: 1101184 | C69: 5200 | D69: 260 | E69: 260 | F69: 10024528 | G69: YL-02-191 | H69: 是 | I69: =VLOOKUP(G69,[2]总台账!$E:$Q,13,0) -> 2005-01-31 | J69: 10 | K69: 晶体过滤器 | L69: 报废库
A70: 69 | B70: 1100530 | C70: 1752.14 | D70: 87.61 | E70: 87.61 | F70: 10025416 | G70: YL-02-196 | H70: 是 | I70: =VLOOKUP(G70,[2]总台账!$E:$Q,13,0) -> 2013-12-17 | J70: 11 | K70: 集热式恒温磁力搅拌器 | L70: 报废库
A71: 70 | B71: 1100694 | C71: 5993 | D71: 299.6 | E71: 299.6 | F71: 10024521 | G71: YL-02-021 | H71: 是 | I71: =VLOOKUP(G71,[2]总台账!$E:$Q,13,0) -> 2004-12-16 | J71: 20 | K71: 电子天平3Kg | L71: 报废库
A72: 71 | B72: 1101207 | C72: 2980 | D72: 149 | E72: 149 | F72: 10024542 | G72: YL-02-027 | H72: 是 | I72: =VLOOKUP(G72,[2]总台账!$E:$Q,13,0) -> 2006-01-25 | J72: 19 | K72: PH计 | L72: 报废库
A73: 72 | B73: 1100247 | C73: 402980.31 | D73: 20149 | E73: 20149 | F73: 10025186 | G73: DL-01-029 | H73: 是 | I73: =VLOOKUP(G73,[2]总台账!$E:$Q,13,0) -> 2010-06-29 | J73: 14 | K73: 满液式水冷冷水机组 | L73: 动力车间
A74: 73 | B74: 1100810 | C74: 8538.46 | D74: 426.9 | E74: 426.9 | F74: 10025016 | G74: YY-01-074 | H74: 是 | I74: =VLOOKUP(G74,[2]总台账!$E:$Q,13,0) -> 2011-03-30 | J74: 14 | K74: UPS电源 | L74: 报废库
A75: 74 | B75: 1100787 | C75: 117460.64 | D75: 5873 | E75: 5873 | F75: 10024758 | G75: ZJ-03-017 | H75: 是 | I75: 2011-03-31 | J75: 14 | K75: 百级灭菌箱1.1-1.2 | L75: 3楼肿瘤
A76: 合计 | C76: =SUM(C2:C75) -> 5966058.62 | E76: =SUM(E2:E75) -> 298194.55
C78: 5966058.62 | E78: 298194.55

Sheet Sheet2

Sheet Sheet3
